bitfinex/quotes_SOLUSD_20250612
["timestamp","ask_amount","ask_price","bid_price","bid_amount"]
[1749693155266,13.84742862,159.78,159.77,5.72]
[1749693156050,27.69485724,159.78,159.77,5.72]
[1749693156251,13.84742862,159.78,159.77,5.72]
[1749693158673,27.69485724,159.78,159.77,5.72]
[1749693158848,13.84742862,159.78,159.77,5.72]
[1749693167855,13.84742862,159.78,159.77,6.14648471]
[1749693168053,26.0,159.81,159.78,0.28432314]
[1749693168356,13.84742862,159.79,159.78,0.28432314]
[1749693168976,13.84742862,159.79,159.78,0.42648471]
[1749693170559,13.84742862,159.79,159.78,0.28432314]
[1749693174584,13.84742862,159.79,159.77,5.72]
[1749693174790,13.84742862,159.78,159.77,6.00432314]
[1749693175592,13.84742862,159.78,159.77,5.72]
[1749693176597,39.84742862,159.78,159.77,5.72]
[1749693177864,13.84742862,159.78,159.77,5.72]
[1749693179482,13.84742862,159.78,159.77,6.00432314]
[1749693180091,26.0,159.75,159.74,5.7]
[1749693180290,39.84742862,159.75,159.74,6.12648471]
[1749693183797,39.84742862,159.75,159.74,24.77613357]
[1749693184211,26.0,159.81,159.75,19.07613357]
[1749693184413,13.84742862,159.76,159.75,19.07613357]
[1749693184589,13.84742862,159.76,159.75,0.28432314]
[1749693184793,27.69485724,159.76,159.74,5.7]
[1749693184993,13.84742862,159.75,159.74,5.98432314]
[1749693187013,13.84742862,159.75,159.74,6.12648471]
[1749693187191,26.0,159.75,159.74,6.12648471]
[1749693187592,13.84742862,159.76,159.74,6.12648471]
[1749693187799,39.84742862,159.76,159.75,0.42648471]
[1749693191112,39.84742862,159.76,159.74,5.7]
[1749693191289,13.84742862,159.75,159.74,24.34964886]
[1749693191704,13.84742862,159.75,159.74,24.77613357]
[1749693193206,13.84742862,159.75,159.74,6.12648471]
[1749693193402,13.84742862,159.75,159.74,5.98432314]
[1749693193603,13.84742862,159.75,159.74,5.7]
[1749693194111,13.84742862,159.75,159.74,5.84216157]
[1749693194411,13.84742862,159.75,159.74,5.98432314]
[1749693195225,6.6158,159.78,159.74,5.98432314]
[1749693195387,13.84742862,159.75,159.74,5.98432314]
[1749693202888,13.84742862,159.75,159.74,24.77613357]
[1749693203106,13.84742862,159.76,159.75,18.64964886]
[1749693203309,39.84742862,159.76,159.75,18.64964886]
[1749693208414,39.84742862,159.76,159.75,19.07613357]
[1749693212607,26.0,159.76,159.75,19.07613357]
[1749693214037,39.84742862,159.76,159.75,19.07613357]
[1749693214409,26.0,159.76,159.75,19.07613357]
[1749693214610,149.1,159.87,159.75,19.07613357]
[1749693214611,13.84742862,159.82,159.79,0.42648471]
[1749693214823,39.84742862,159.82,159.81,19.07613357]
[1749693215031,6.1977,159.9,159.81,19.07613357]
[1749693215032,13.84742862,159.84,159.82,0.42648471]
[1749693215215,6.1977,159.9,159.85,0.42648471]
[1749693215420,13.84742862,159.86,159.85,0.42648471]
[1749693216570,39.84742862,159.86,159.85,0.42648471]
[1749693216740,26.0,159.86,159.85,0.42648471]
[1749693217037,39.84742862,159.86,159.85,0.42648471]
[1749693227138,26.0,159.86,159.85,0.42648471]
[1749693228539,1.5742,159.95,159.87,0.42648471]
[1749693228773,155.5883,159.98,159.9,0.42648471]
[1749693229051,13.84742862,159.91,159.9,0.42648471]
[1749693229367,39.84742862,159.91,159.9,0.42648471]
[1749693230467,26.0,159.91,159.9,0.42648471]
[1749693230968,13.84742862,159.94,159.9,0.42648471]
[1749693231140,1.6487,159.99,159.92,19.07613357]
[1749693231460,39.84742862,159.93,159.92,19.07613357]
[1749693231638,39.84742862,159.93,159.92,6.10648471]
[1749693235175,26.0,159.97,159.94,0.42648471]
[1749693235473,13.84742862,159.97,159.96,0.42648471]
[1749693235976,26.0,159.99,159.96,0.42648471]
[1749693236144,6.1495,160.06,159.96,0.42648471]
[1749693236340,13.84742862,160.01,159.98,19.07613357]
[1749693236638,13.84742862,160.02,159.98,19.07613357]
[1749693236843,26.0,159.99,159.98,20.59593357]
[1749693239103,26.0,160.0,159.98,34.44336219]
[1749693239573,13.84742862,160.03,159.98,34.44336219]
[1749693240081,26.0,160.0,159.98,20.59593357]
[1749693240878,13.84742862,160.08,159.98,34.44336219]
[1749693241057,13.84742862,160.04,160.0,19.07613357]
[1749693241253,13.84742862,160.04,160.02,0.42648471]
[1749693241971,13.84742862,160.03,160.02,0.42648471]
[1749693243453,26.0,160.05,160.02,19.07613357]
[1749693243684,13.84742862,160.03,160.02,18.933972]
[1749693243977,13.84742862,160.03,160.02,19.07613357]
[1749693244179,26.0,160.05,160.04,0.28432314]
[1749693244355,6.5802,160.1,160.04,0.28432314]
[1749693244356,13.84742862,160.06,160.04,0.28432314]
[1749693244554,6.24424801,160.15,160.04,0.28432314]
[1749693244555,13.84742862,160.07,160.04,0.28432314]
[1749693244778,13.84742862,160.05,160.04,0.28432314]
[1749693246180,13.84742862,160.05,160.04,0.14216157]
[1749693246374,26.0,160.05,160.04,0.14216157]
[1749693246570,39.84742862,160.05,160.04,0.14216157]
[1749693247667,39.84742862,160.05,160.01,5.68]
[1749693247868,13.84742862,160.02,160.01,5.68]
[1749693248259,13.84742862,160.02,160.01,6.10648471]
[1749693248461,13.84742862,160.02,160.01,5.68]
[1749693248669,6.4153,160.07,160.01,5.68]
[1749693248869,26.0,160.04,160.02,0.28432314]
[1749693249067,13.84742862,160.03,160.02,0.28432314]
[1749693249259,13.84742862,160.03,160.01,5.68]
[1749693249466,13.84742862,160.02,160.01,5.68]
[1749693250081,26.0,160.04,160.02,0.28432314]
[1749693250285,13.84742862,160.03,160.02,0.28432314]
[1749693257463,13.84742862,160.03,160.01,5.68]
[1749693257669,13.84742862,160.02,160.01,5.96432314]
[1749693258063,13.84742862,160.02,160.01,6.10648471]
[1749693260091,13.84742862,160.02,160.01,5.96432314]
[1749693261796,27.69485724,160.02,160.01,5.68]
[1749693262097,13.84742862,160.02,160.01,5.68]
[1749693263278,27.69485724,160.02,160.01,5.68]
[1749693264399,13.84742862,160.02,160.01,5.68]
[1749693265082,27.69485724,160.02,160.01,5.68]
[1749693265279,13.84742862,160.02,160.01,5.68]
[1749693269184,27.69485724,160.02,160.01,5.68]
[1749693270012,27.69485724,160.02,159.97,0.14216157]
[1749693270013,26.0,159.99,159.97,0.14216157]
[1749693270311,13.84742862,159.98,159.97,0.28432314]
[1749693270473,26.0,160.04,159.97,18.933972]
[1749693270669,13.84742862,159.99,159.98,0.14216157]
[1749693284811,13.84742862,160.0,159.98,0.14216157]
[1749693286413,13.84742862,160.02,160.0,19.07613357]
[1749693287700,13.84742862,160.03,160.0,20.68423357]
[1749693288096,13.84742862,160.02,160.0,20.68423357]
[1749693289300,26.0,160.05,160.0,20.68423357]
[1749693289612,26.0,160.05,160.0,34.53166219]
[1749693289613,13.84742862,160.05,160.0,34.53166219]
[1749693290315,26.0,160.01,160.0,20.68423357]
[1749693300612,26.0,160.05,160.0,34.53166219]
[1749693300813,26.0,160.03,160.02,19.07613357]
[1749693301000,6.5128,160.11,160.02,19.07613357]
[1749693301001,13.84742862,160.04,160.02,19.07613357]
[1749693301323,13.84742862,160.08,160.05,0.14216157]
[1749693301324,39.84742862,160.08,160.05,0.14216157]
[1749693301502,39.84742862,160.08,160.07,0.28432314]
[1749693302097,39.84742862,160.08,160.07,19.07613357]
[1749693303005,6.436,160.15,160.07,19.07613357]
[1749693303205,6.436,160.15,160.07,44.91613357]
[1749693303413,13.84742862,160.12,160.07,58.76356219]
[1749693303821,26.0,160.09,160.07,58.76356219]
[1749693303990,26.0,160.08,160.07,44.91613357]
[1749693304327,13.84742862,160.11,160.07,44.91613357]
[1749693304525,26.0,160.08,160.07,44.91613357]
[1749693305229,6.436,160.15,160.07,44.91613357]
[1749693305230,26.0,160.12,160.07,44.91613357]
[1749693305398,6.436,160.15,160.07,44.91613357]
[1749693305399,26.0,160.08,160.07,44.91613357]
[1749693307314,39.84742862,160.08,160.07,18.64964886]
[1749693307493,39.84742862,160.08,160.06,92.96]
[1749693307703,13.84742862,160.07,160.06,111.60964886]
[1749693307900,13.84742862,160.07,160.06,24.30964886]
[1749693308301,13.84742862,160.07,160.06,24.73613357]
[1749693308607,13.84742862,160.07,160.06,24.30964886]
[1749693309021,13.84742862,160.07,160.06,24.73613357]
[1749693309706,26.0,160.11,160.07,0.42648471]
[1749693309913,13.84742862,160.08,160.07,0.42648471]
[1749693310724,6.436,160.15,160.07,0.42648471]
[1749693310725,26.0,160.1,160.07,0.42648471]
[1749693311034,13.84742862,160.08,160.07,0.42648471]
[1749693311702,13.84742862,160.08,160.07,0.28432314]
[1749693311930,27.69485724,160.08,160.06,5.66]
[1749693312129,26.0,160.1,160.07,0.28432314]
[1749693312308,27.69485724,160.08,160.07,0.28432314]
[1749693315339,27.69485724,160.08,160.06,5.66]
[1749693315634,13.84742862,160.07,160.06,5.94432314]
[1749693323445,13.84742862,160.07,160.06,5.66]
[1749693326322,13.84742862,160.07,160.06,5.94432314]
[1749693327752,6.23,160.17,160.07,0.42648471]
[1749693327957,13.84742862,160.1,160.07,19.07613357]
[1749693328132,13.84742862,160.08,160.07,19.07613357]
[1749693328645,13.84742862,160.09,160.07,19.07613357]
[1749693330552,13.84742862,160.08,160.07,19.07613357]
[1749693333026,13.84742862,160.09,160.07,19.07613357]
[1749693333334,26.0,160.13,160.07,19.07613357]
[1749693333557,26.0,160.08,160.07,19.07613357]
[1749693338163,13.84742862,160.12,160.07,32.92356219]
[1749693338343,26.0,160.08,160.07,19.07613357]
[1749693339040,13.84742862,160.08,160.07,19.07613357]
[1749693339732,13.84742862,160.09,160.07,19.07613357]
[1749693341048,13.84742862,160.08,160.07,19.07613357]
[1749693341267,13.84742862,160.08,160.07,44.89613357]
[1749693344270,13.84742862,160.08,160.07,19.07613357]
[1749693344571,26.0,160.13,160.07,44.89613357]
[1749693344572,13.84742862,160.09,160.07,44.89613357]
[1749693345269,13.84742862,160.11,160.07,44.89613357]
[1749693345489,26.0,160.08,160.07,44.89613357]
[1749693349688,13.84742862,160.08,160.07,31.88648471]
[1749693350777,13.84742862,160.08,160.07,6.08648471]
[1749693350987,26.0,160.13,160.09,0.14216157]
[1749693351167,13.84742862,160.11,160.1,26.22648471]
[1749693351990,13.84742862,160.11,160.1,44.87613357]
[1749693354267,26.0,160.13,160.12,0.28432314]
[1749693354473,39.84742862,160.13,160.12,0.28432314]
[1749693357789,26.0,160.13,160.12,0.28432314]
[1749693358099,39.84742862,160.13,160.12,0.28432314]
[1749693361388,8.78209968,160.13,160.12,0.28432314]
[1749693362086,8.78209968,160.13,160.12,24.73613357]
[1749693362472,8.78209968,160.13,160.12,6.08648471]
[1749693366176,34.78209968,160.13,160.12,6.08648471]
[1749693366896,34.78209968,160.13,160.12,0.42648471]
[1749693367107,26.0,160.13,160.12,0.42648471]
[1749693367272,34.78209968,160.13,160.12,0.42648471]
[1749693368887,8.78209968,160.13,160.12,0.42648471]
[1749693369483,61.12839872,160.16,160.12,0.42648471]
[1749693369687,8.78209968,160.13,160.12,0.42648471]
[1749693372507,34.78209968,160.13,160.12,0.42648471]
[1749693373013,26.0,160.13,160.11,0.42648471]
[1749693373190,8.78209968,160.12,160.11,0.42648471]
[1749693375581,8.78209968,160.12,160.11,19.07613357]
[1749693376013,8.78209968,160.13,160.11,19.07613357]
[1749693376186,8.78209968,160.15,160.13,0.42648471]
[1749693377914,6.5247,160.21,160.13,0.42648471]
[1749693377915,26.0,160.18,160.13,0.42648471]
[1749693378117,8.78209968,160.15,160.13,0.42648471]
[1749693378295,8.78209968,160.16,160.13,19.07613357]
[1749693378494,8.78209968,160.15,160.13,19.07613357]
[1749693379220,13.71503803,160.15,160.13,19.07613357]
[1749693379404,26.0,160.18,160.13,19.07613357]
[1749693379725,13.71503803,160.15,160.13,19.07613357]
[1749693384504,13.71503803,160.16,160.13,19.07613357]
[1749693387003,13.71503803,160.17,160.13,19.07613357]
[1749693387200,43.15718108,160.28,160.14,13.71503803]
[1749693387201,26.0,160.21,160.14,13.71503803]
[1749693387407,13.71503803,160.2,160.15,58.5711716]
[1749693387597,6.1719,160.25,160.15,58.5711716]
[1749693387801,13.71503803,160.23,160.2,0.42648471]
[1749693388003,13.71503803,160.23,160.22,18.79181043]
[1749693388627,13.71503803,160.23,160.22,0.42648471]
[1749693388807,13.71503803,160.23,160.22,0.28432314]
[1749693392007,13.71503803,160.23,160.21,5.64]
[1749693392328,26.0,160.21,160.18,5.64]
[1749693392529,13.71503803,160.19,160.18,5.64]
[1749693392716,13.71503803,160.19,160.18,6.06648471]
[1749693393432,26.0,160.21,160.19,0.28432314]
[1749693393618,13.71503803,160.2,160.19,0.28432314]
[1749693395122,26.0,160.21,160.19,0.28432314]
[1749693395418,13.71503803,160.2,160.19,0.28432314]
[1749693396131,13.71503803,160.2,160.19,0.42648471]
[1749693399825,13.71503803,160.2,160.19,19.07613357]
[1749693404116,13.71503803,160.24,160.19,19.07613357]
[1749693404422,13.71503803,160.2,160.19,19.07613357]
[1749693407343,8.77391291,160.2,160.19,19.07613357]
[1749693408933,8.77391291,160.2,160.19,0.42648471]
[1749693410651,8.77391291,160.2,160.19,19.07613357]
[1749693412359,8.77391291,160.2,160.19,44.83613357]
[1749693412654,8.77391291,160.21,160.19,44.83613357]
[1749693413246,13.70376677,160.21,160.19,44.83613357]
[1749693415243,13.70376677,160.2,160.19,44.83613357]
[1749693416760,13.70376677,160.24,160.19,44.83613357]
[1749693417053,13.70376677,160.2,160.19,44.83613357]
[1749693418537,13.70376677,160.2,160.18,5.64]
[1749693418734,13.70376677,160.19,160.18,24.28964886]
[1749693418959,13.70376677,160.19,160.18,24.71613357]
[1749693419836,13.70376677,160.24,160.2,0.28432314]
[1749693420063,13.70376677,160.21,160.2,0.28432314]
[1749693421136,13.70376677,160.21,160.18,5.64]
[1749693421351,13.70376677,160.24,160.18,5.64]
[1749693421352,13.70376677,160.19,160.18,5.64]
[1749693421551,13.70376677,160.19,160.18,24.28964886]
[1749693421839,13.70376677,160.19,160.18,24.71613357]
[1749693425834,13.70376677,160.19,160.18,5.64]
[1749693426792,13.70376677,160.19,160.18,5.92432314]
[1749693432673,53.40753354,160.19,160.15,6.06648471]
[1749693432876,27.40753354,160.16,160.15,24.71613357]
[1749693433258,13.70376677,160.16,160.15,24.71613357]
[1749693435348,8.77764826,160.16,160.15,24.71613357]
[1749693437074,43.8882413,160.16,160.15,5.78216157]
[1749693437382,8.77764826,160.16,160.15,5.78216157]
[1749693437577,8.77764826,160.16,160.15,6.06648471]
[1749693440446,43.8882413,160.16,160.15,5.64]
[1749693442450,43.8882413,160.16,160.12,0.28432314]
[1749693442678,8.77764826,160.13,160.12,5.62]
[1749693442969,8.77764826,160.13,160.12,5.90432314]
[1749693443346,13.72382259,160.13,160.12,5.90432314]
[1749693447954,13.72382259,160.13,160.12,5.62]
[1749693448262,13.72382259,160.13,160.09,5.90432314]
[1749693448568,13.72382259,160.1,160.09,6.04648471]
[1749693449587,26.0,160.15,160.1,18.79181043]
[1749693449754,13.72382259,160.16,160.11,0.28432314]
[1749693450769,13.72382259,160.12,160.11,0.28432314]
[1749693456196,13.72382259,160.16,160.11,0.28432314]
[1749693456482,13.72382259,160.12,160.11,0.28432314]
[1749693459580,7.6191,160.21,160.12,1.5692]
[1749693459767,7.6191,160.21,160.13,19.07613357]
[1749693459768,13.72382259,160.15,160.13,19.07613357]
[1749693460170,13.72382259,160.17,160.16,0.42648471]
[1749693460801,13.72382259,160.17,160.16,0.28432314]
[1749693461987,27.44764518,160.17,160.15,0.28432314]
[1749693462167,27.44764518,160.16,160.15,0.28432314]
[1749693464161,27.44764518,160.16,160.14,5.62]
[1749693464358,13.72382259,160.15,160.14,5.90432314]
[1749693467884,13.72382259,160.15,160.14,5.62]
[1749693469703,13.72382259,160.15,160.14,5.90432314]
[1749693477106,32.6052,160.23,160.16,0.14216157]
[1749693477286,6.6052,160.23,160.16,0.14216157]
[1749693478291,13.72382259,160.17,160.16,0.14216157]
[1749693483612,27.44764518,160.17,160.15,0.28432314]
[1749693483826,6.2415046,160.22,160.15,0.28432314]
[1749693484109,13.72382259,160.16,160.15,0.14216157]
[1749693484319,13.72382259,160.16,160.15,0.28432314]
[1749693484912,13.72382259,160.16,160.15,19.07613357]
[1749693486998,6.6052,160.23,160.15,19.07613357]
[1749693486999,13.72382259,160.17,160.15,19.07613357]
[1749693487398,13.72382259,160.16,160.15,19.07613357]
[1749693488401,13.72382259,160.17,160.15,19.07613357]
[1749693488705,6.6052,160.23,160.15,19.07613357]
[1749693488706,13.72382259,160.18,160.15,19.07613357]
[1749693489010,13.72382259,160.19,160.18,0.42648471]
[1749693490098,7.656,160.28,160.18,0.42648471]
[1749693490404,13.72382259,160.2,160.18,0.42648471]
[1749693492927,26.0,160.27,160.18,0.42648471]
[1749693493223,13.72382259,160.21,160.18,0.42648471]
[1749693494538,26.0,160.25,160.18,0.42648471]
[1749693494825,13.72382259,160.21,160.18,0.42648471]
[1749693497142,26.0,160.25,160.18,0.42648471]
[1749693497300,26.0,160.28,160.2,0.42648471]
[1749693497624,13.72382259,160.24,160.23,0.42648471]
[1749693497926,13.72382259,160.24,160.23,24.69613357]
[1749693500208,26.0,160.29,160.23,24.69613357]
[1749693500612,13.72382259,160.24,160.23,24.69613357]
[1749693511653,13.72382259,160.24,160.23,6.04648471]
[1749693520290,13.72382259,160.24,160.23,5.90432314]
[1749693522367,13.72382259,160.24,160.23,6.04648471]
[1749693528110,13.72382259,160.24,160.23,5.90432314]
[1749693528604,13.72382259,160.24,160.23,5.76216157]
[1749693529193,13.72382259,160.24,160.23,6.04648471]
[1749693530685,21.51692259,160.32,160.23,5.90432314]
[1749693531006,13.72382259,160.24,160.23,5.90432314]
[1749693539101,13.72382259,160.24,160.23,6.04648471]
[1749693539410,8.76914456,160.24,160.23,6.04648471]
[1749693541232,8.76914456,160.24,160.23,5.90432314]
[1749693544219,43.8457228,160.24,160.23,5.62]
[1749693545009,8.76914456,160.24,160.23,5.62]
[1749693548347,4.6585821,160.29,160.23,5.62]
[1749693548524,8.76914456,160.24,160.23,5.90432314]
[1749693549535,8.76914456,160.24,160.23,6.04648471]
[1749693549846,26.0,160.28,160.24,0.28432314]
[1749693550044,8.76914456,160.25,160.24,0.28432314]
[1749693551722,8.76914456,160.25,160.24,0.42648471]
[1749693552133,34.76914456,160.25,160.24,0.42648471]
[1749693552717,26.0,160.25,160.24,0.42648471]
[1749693552917,26.0,160.25,160.24,19.07613357]
[1749693556625,26.0,160.29,160.24,19.07613357]
[1749693556825,13.69550809,160.26,160.24,19.07613357]
[1749693557031,26.0,160.29,160.24,19.07613357]
[1749693557228,13.69550809,160.26,160.24,19.07613357]
[1749693557933,26.0,160.29,160.24,19.07613357]
[1749693558135,13.69550809,160.27,160.24,19.07613357]
[1749693560128,26.0,160.29,160.24,19.07613357]
[1749693560329,13.69550809,160.25,160.24,19.07613357]
[1749693561953,13.69550809,160.26,160.24,19.07613357]
[1749693565727,26.0,160.29,160.24,19.07613357]
[1749693565953,13.69550809,160.26,160.24,19.07613357]
[1749693570260,19.93070809,160.32,160.24,19.07613357]
[1749693570261,13.69550809,160.27,160.24,19.07613357]
[1749693570458,13.69550809,160.26,160.24,19.07613357]
[1749693570661,26.0,160.31,160.24,19.07613357]
[1749693570871,13.69550809,160.27,160.24,19.07613357]
[1749693572866,26.0,160.31,160.24,19.07613357]
[1749693573067,7.9927,160.36,160.24,32.77164166]
[1749693573289,13.69550809,160.29,160.24,32.77164166]
[1749693573568,13.69550809,160.28,160.24,19.07613357]
[1749693575350,8.76330255,160.28,160.24,19.07613357]
[1749693576053,8.76330255,160.27,160.24,19.07613357]
[1749693579611,35.0532102,160.32,160.24,19.07613357]
[1749693579778,8.76330255,160.27,160.24,19.07613357]
[1749693580203,35.0532102,160.32,160.24,19.07613357]
[1749693580416,8.76330255,160.27,160.24,19.07613357]
[1749693581925,35.0532102,160.32,160.24,19.07613357]
[1749693582099,8.76330255,160.27,160.24,19.07613357]
[1749693583626,35.0532102,160.32,160.24,19.07613357]
[1749693583827,8.76330255,160.27,160.24,19.07613357]
[1749693585325,8.76330255,160.27,160.26,19.07613357]
[1749693585525,8.76330255,160.27,160.26,50.33613357]
[1749693586826,35.0532102,160.32,160.26,50.33613357]
[1749693587128,8.76330255,160.27,160.26,0.42648471]
[1749693587331,8.76330255,160.27,160.26,50.31613357]
[1749693587922,8.76330255,160.28,160.26,50.31613357]
[1749693589819,8.76330255,160.28,160.27,31.24]
[1749693589996,8.76330255,160.28,160.26,19.07613357]
[1749693590416,8.76330255,160.28,160.27,31.24]
[1749693591322,8.76330255,160.28,160.26,19.07613357]
[1749693591528,8.76330255,160.28,160.27,31.24]
[1749693595240,35.0532102,160.32,160.28,0.42648471]
[1749693595408,8.76330255,160.29,160.28,0.42648471]
[1749693597059,34.76330255,160.29,160.28,0.42648471]
[1749693600747,34.76330255,160.29,160.27,5.58]
[1749693600949,8.76330255,160.28,160.27,5.58]
[1749693602027,6.4964,160.3,160.27,5.58]
[1749693602352,34.47397734,160.37,160.27,24.65613357]
[1749693602353,26.0,160.28,160.27,24.65613357]
[1749693602740,6.5345,160.34,160.27,24.65613357]
[1749693602741,26.0,160.31,160.27,24.65613357]
[1749693603047,8.76330255,160.28,160.27,24.65613357]
[1749693604759,8.76330255,160.28,160.27,6.00648471]
[1749693605053,8.76330255,160.28,160.27,5.58]
[1749693605557,26.0,160.29,160.27,5.58]
[1749693605757,8.76330255,160.28,160.27,5.58]
[1749693606657,8.76330255,160.28,160.24,5.58]
[1749693606658,26.0,160.25,160.24,5.58]
[1749693606855,34.76330255,160.25,160.24,5.58]
[1749693607085,34.76330255,160.25,160.21,5.58]
[1749693607086,69.81651275,160.25,160.21,5.58]
[1749693607236,26.0,160.21,160.2,5.58]
[1749693607438,34.76330255,160.21,160.2,5.58]
[1749693607859,34.76330255,160.21,160.2,6.00648471]
[1749693608330,34.76330255,160.21,160.2,5.58]
[1749693609149,34.76330255,160.21,160.2,6.00648471]
[1749693610336,34.76330255,160.21,160.2,5.86432314]
[1749693610960,34.76330255,160.22,160.21,0.28432314]
[1749693612237,34.76330255,160.22,160.21,0.14216157]
[1749693612435,8.76330255,160.22,160.2,5.58]
[1749693612664,34.76330255,160.21,160.2,5.58]
[1749693612838,34.76330255,160.21,160.2,5.86432314]
[1749693615758,34.76330255,160.21,160.2,5.58]
[1749693616439,34.76330255,160.21,160.18,0.28432314]
[1749693616666,8.76330255,160.19,160.18,0.28432314]
[1749693619672,8.76330255,160.19,160.17,5.58]
[1749693619873,8.76330255,160.18,160.17,5.58]
[1749693622469,43.81651275,160.18,160.17,5.58]
[1749693622653,26.0,160.15,160.14,5.86432314]
[1749693622861,34.76330255,160.15,160.14,5.58]
[1749693623252,34.76330255,160.15,160.14,5.86432314]
[1749693624149,34.76330255,160.15,160.14,5.58]
[1749693625350,13.72270058,160.15,160.14,5.58]
[1749693629857,26.0,160.19,160.14,6.00648471]
[1749693630061,13.72270058,160.17,160.15,19.07613357]
[1749693630748,13.72270058,160.18,160.15,19.07613357]
[1749693630952,13.72270058,160.18,160.17,0.42648471]
[1749693631167,39.72270058,160.18,160.17,0.42648471]
[1749693631979,13.72270058,160.18,160.17,0.42648471]
[1749693632360,39.72270058,160.18,160.17,0.42648471]
[1749693632965,13.72270058,160.2,160.17,19.07613357]
[1749693633166,13.72270058,160.19,160.17,19.07613357]
[1749693634075,13.72270058,160.18,160.17,0.42648471]
[1749693635981,13.72270058,160.18,160.15,0.14216157]
[1749693636190,24.72684886,160.26,160.14,5.58]
[1749693636191,27.44540116,160.16,160.14,5.58]
[1749693636362,39.72270058,160.15,160.14,6.00648471]
[1749693637789,39.72270058,160.15,160.14,5.58]
[1749693638086,13.72270058,160.15,160.14,5.58]
[1749693638786,26.0,160.16,160.14,5.58]
[1749693638962,26.0,160.16,160.15,0.42648471]
[1749693639164,39.72270058,160.16,160.15,0.42648471]
[1749693648789,13.72270058,160.24,160.15,19.07613357]
[1749693648971,13.72270058,160.19,160.15,19.07613357]
[1749693649285,13.72270058,160.2,160.15,32.79883415]
[1749693650008,13.72270058,160.19,160.15,19.07613357]
[1749693650166,39.72270058,160.19,160.15,19.07613357]
[1749693651191,26.0,160.19,160.15,32.79883415]
[1749693651763,39.72270058,160.19,160.15,19.07613357]
[1749693653213,13.72270058,160.18,160.15,19.07613357]
[1749693653416,13.72270058,160.17,160.15,19.07613357]
[1749693653701,13.72270058,160.16,160.15,19.07613357]
[1749693653872,13.72270058,160.16,160.15,44.73613357]
[1749693654597,13.72270058,160.17,160.15,44.73613357]
[1749693656508,13.72270058,160.17,160.16,25.66]
[1749693656677,13.72270058,160.18,160.16,26.08648471]
[1749693657574,39.72270058,160.17,160.16,44.73613357]
[1749693658518,39.72270058,160.18,160.16,44.73613357]
[1749693659001,39.72270058,160.18,160.17,5.58]
[1749693660701,39.72270058,160.18,160.17,5.86432314]
[1749693660909,39.72270058,160.18,160.17,5.58]
[1749693661203,39.72270058,160.18,160.17,5.86432314]
[1749693661411,39.72270058,160.18,160.17,6.00648471]
[1749693661583,13.72270058,160.21,160.18,0.42648471]
[1749693661783,13.72270058,160.2,160.19,44.73613357]
[1749693665320,26.0,160.21,160.19,44.73613357]
[1749693665489,13.72270058,160.2,160.19,44.73613357]
[1749693666616,26.0,160.21,160.19,44.73613357]
[1749693666801,26.0,160.21,160.2,19.07613357]
[1749693667160,13.72270058,160.26,160.2,32.79883415]
[1749693667419,8.0505,160.31,160.22,19.07613357]
[1749693667723,8.0505,160.31,160.24,19.07613357]
[1749693667923,13.72270058,160.28,160.25,25.64]
[1749693668105,6.3279,160.35,160.27,0.42648471]
[1749693668417,13.72270058,160.28,160.27,26.06648471]
[1749693672707,26.0,160.29,160.27,26.06648471]
[1749693672912,13.72270058,160.28,160.27,26.06648471]
[1749693682036,26.0,160.29,160.27,26.06648471]
[1749693682243,13.72270058,160.3,160.28,18.64964886]
[1749693682536,13.72270058,160.3,160.29,25.62]
[1749693685146,26.0,160.32,160.29,25.62]
[1749693685447,26.0,160.32,160.3,0.42648471]
[1749693686530,13.72270058,160.31,160.3,0.42648471]
[1749693689675,13.72270058,160.31,160.3,19.07613357]
[1749693689822,26.0,160.36,160.3,19.07613357]
[1749693690022,13.72270058,160.31,160.3,19.07613357]
[1749693693446,26.0,160.36,160.3,19.07613357]
[1749693693646,39.72270058,160.33,160.32,19.07613357]
[1749693695133,13.72270058,160.33,160.32,19.07613357]
[1749693696372,13.72270058,160.33,160.27,0.14216157]
[1749693696534,26.0,160.36,160.33,0.28432314]
[1749693696844,13.72270058,160.34,160.32,5.56]
[1749693697030,13.72270058,160.33,160.32,5.98648471]
[1749693698661,27.44540116,160.33,160.29,5.56]
[1749693698840,13.72270058,160.3,160.29,5.56]
[1749693699035,13.72270058,160.3,160.29,5.84432314]
[1749693699455,13.72270058,160.3,160.29,5.56]
[1749693699739,13.72270058,160.3,160.29,5.84432314]
[1749693700146,26.0,160.33,160.3,0.28432314]
[1749693700340,13.72270058,160.31,160.3,0.42648471]